Cogmind - Beta 16 @@@ ROGUE MODE // 2025.12.26 @ 17:34:32 Player: teh_pwnerer Result: Destroyed by G-47 Trooper with Particle Gun Performance ------------- Evolutions (2) 1000 Regions Visited (3) 600 Robots Destroyed (18) 90 Value Destroyed (638) 638 Prototype IDs (1) 20 Alien Tech Used (0) 0 Bonus (0) 0 TOTAL SCORE: 2348 Bonus ------- None Cogmind --------- Core Integrity 0/550 Matter 288/500 Energy 64/100 System Corruption 0% Temperature Warm (102) Movement Core (200) Ox3 Location -8/Materials Parts ------- > --- POWER (3) -------- (None) > --- PROPULSION (2) --- (None) > --- UTILITY (3) ------ Small Storage Unit High-capacity Matter Pod > --- WEAPON (3) ------- Pulse Rifle > --- INVENTORY (8) ---- (None) Peak State ------------ > --- POWER ------------ (None) > --- PROPULSION ------- Aluminum Leg Improved Aluminum Leg > --- UTILITY ---------- Small Storage Unit High-capacity Matter Pod Sensor Array > --- WEAPON ----------- Improved EM Shotgun Beam Rifle Flak Cannon > --- INVENTORY -------- Pulse Rifle [Rating: 14] Favorites ----------- Power Light Ion Engine Engine Light Ion Engine Propulsion Aluminum Leg Leg Aluminum Leg Utility High-capacity Matter Pod Device Sensor Array Storage High-capacity Matter Pod Protection Light Armor Plating Weapon Medium Laser Energy Gun Medium Laser Ballistic Cannon Flak Cannon Launcher Grenade Launcher Build | -11 -10 -9 -8 ------- Run | Yrd Mat Mat Mat Slots Evolved 4 | . . 2 2 Power 2 | . . . 2 Propulsion . | . . . . Utility 1 | . . 1 . Weapon 1 | . . 1 . Parts Attached 16 | 5 2 6 3 Power 1 | 1 . . . Engine 1 | 1 . . . Core . | . . . . Reactor . | . . . . Propulsion 3 | 2 . 1 . Treads . | . . . . Leg 3 | 2 . 1 . Wheel . | . . . . Hover . | . . . . Flight . | . . . . Utility 5 | . 2 2 1 Device 2 | . 1 . 1 Storage 2 | . 1 1 . Processor . | . . . . Hackware . | . . . . Protection 1 | . . 1 . Artifact . | . . . . Weapon 7 | 2 . 3 2 Energy Gun 5 | 2 . 2 1 Energy Cannon . | . . . . Ballistic Gun . | . . . . Ballistic Cannon 1 | . . . 1 Launcher 1 | . . 1 . Special Weapon . | . . . . Impact Weapon . | . . . . Slashing Weapon . | . . . . Piercing Weapon . | . . . . Special Melee Weapon . | . . . . Unidentified Prototypes 1 | . . 1 . Parts Lost 10 | . 2 . 8 Power 1 | . 1 . . Propulsion 2 | . . . 2 Utility 3 | . 1 . 2 Weapon 4 | . . . 4 Highest Loss Streak 7 | . 2 . 7 To Critical Strikes . | . . . . Average Backups . | . 1 . 1 Power . | . . . . Propulsion . | . . . . Utility . | . . . . Weapon . | . . . . Tool/Special . | . . . . Unused Backups . | . . . . Power . | . . . . Propulsion . | . . . . Utility . | . . . . Weapon . | . . . . Tool/Special . | . . . . Average Slot Usage (%) 81 | . 91 77 66 Engine 5 | . 13 . . Leg 23 | . 28 22 16 Device 5 | . 10 . 2 Storage 13 | . 10 12 18 Protection 3 | . . 10 3 Energy Gun 23 | . 28 22 16 Launcher 5 | . . 11 7 Peak Build Rating 14 | 5 7 12 14 Average Rating 7 | 4 6 8 11 On Entrance 5 | . 5 5 12 Avg Prop Armor Cover (%) . | . . . . Naked Turns . | . . . . Heaviest Build 22 | 7 12 21 22 Greatest Support 23 | 20 20 23 23 Greatest Overweight (x) 2 | 2 . . 2 Average Overweight (x) . | . . . . Largest Inventory Capacity 8 | 5 5 8 8 Average Capacity 5 | 5 5 5 8 Most Carried 3 | 3 3 1 2 Average Carried . | . 1 . 1 Final Capacity 8 | 5 5 8 8 Final Carried 2 | . 2 . . Class Distribution -------------------- 55% | Mutant 34% | Tank 5% | Gunner 4% | Skirmisher Dominant Class ---------------- Mutant | -10/Materials Tank | -9/Materials Tank | -8/Materials Resources | -11 -10 -9 -8 ----------- Run | Yrd Mat Mat Mat Matter Collected 471 | 79 274 118 . Remotely . | . . . . Salvage Created 547 | . 67 143 337 Parts 26 | . 5 13 8 Haulers Intercepted 3 | . . . 3 Recyclers Shooed . | . . . . Parts Field Recycled . | . . . . Retrieved Matter . | . . . . Parts Self-Destructed . | . . . . Prevented . | . . . . Parts Restored . | . . . . Kills | -11 -10 -9 -8 ------- Run | Yrd Mat Mat Mat Combat Hostiles Destroyed 13 | . 2 6 5 Guns 4 | . 2 2 . Cannons 1 | . . . 1 AOE 7 | . . 3 4 Classes Destroyed 7 | . 1 2 4 Hauler 3 | . . . 3 Watcher 2 | . . . 2 Swarmer 4 | . . 4 . Grunt 5 | . 2 . 3 Brawler 1 | . . . 1 Duelist 1 | . . . 1 Sentry 2 | . . 2 . Best Kill Streak 5 | . 2 4 5 Combat Bots Only 4 | . 2 4 4 Max Kills in Single Turn 2 | . 1 2 2 Gunslinging . | . . . . Exploded 2 | . . 2 2 Melee . | . . . . Uniques/NPCs Destroyed . | . . . . Combat | -11 -10 -9 -8 -------- Run | Yrd Mat Mat Mat Hostile Shots Fired 112 | . 5 29 78 Missed 30 | . 2 9 19 Hits 82 | . 3 20 59 Melee 9 | . . . 9 Projectile 73 | . 3 20 50 Critical Strikes 5 | . . 2 3 Damage Taken 1672 | . 74 250 1348 Core 603 | . . 40 563 Absorbed by Shields . | . . . . Core Remaining (%) 96 | 100 100 90 . Volleys Fired 52 | . 6 11 35 Largest 3 | . 2 3 2 Hottest 136 | . 90 136 101 Shots Fired 84 | . 12 24 48 Gun 62 | . 12 22 28 Cannon 13 | . . . 13 Launcher 9 | . . 2 7 Special . | . . . . Kinetic 13 | . . . 13 Thermal 40 | . 6 19 15 Explosive 9 | . . 2 7 Electromagnetic 22 | . 6 3 13 Robot Hit Streak 9 | . 4 9 8 Robot Miss Streak 6 | . 3 2 6 Penetration Max . | . . . . Secondary Targets . | . . . . Shots Hit Robots 60 | . 5 17 38 Core Hits 49 | . 3 8 38 Critical Kills . | . . . . Critical Parts Destroyed . | . . . . Critical Strikes 1 | . . . 1 Burn 1 | . . . 1 Melee Attacks . | . . . . Impact . | . . . . Slashing . | . . . . Piercing . | . . . . Sneak Attacks . | . . . . Combat Hostiles . | . . . . Follow-up Attacks . | . . . . Damage Inflicted 2270 | . 66 308 1896 Guns 634 | . 66 208 360 Cannons 317 | . . . 317 Explosions 1319 | . . 100 1219 Melee . | . . . . Ramming . | . . . . Kinetic 317 | . . . 317 Thermal 1064 | . 24 174 866 Explosive 604 | . . 100 504 Electromagnetic 285 | . 42 34 209 Impact . | . . . . Slashing . | . . . . Piercing . | . . . . Highest Corruption . | . . . . Average Corruption . | . . . . Corruption Purged . | . . . . Corruption Blocked . | . . . . Overload Shots . | . . . . Overflow Damage 51 | . . . 51 Projectiles . | . . . . Explosions 51 | . . . 51 Melee . | . . . . Knockbacks 13 | . . . 13 Impact . | . . . . Kinetic 10 | . . . 10 Secondary 3 | . . . 3 Self-Inflicted Damage 292 | . . . 292 Shots 5 | . . . 5 Rammed . | . . . . Targets Rammed . | . . . . Kicked . | . . . . Crushed . | . . . . Highest Temperature 198 | . 198 161 93 Average Temperature 53 | . 100 63 21 Received Heat Transfer 477 | . 18 72 387 Siege Activations . | . . . . Martial Activations . | . . . . Shielding Activations . | . . . . Robots Disrupted . | . . . . Combat Hostiles . | . . . . Robots Corrupted 1 | . . . 1 Combat Hostiles . | . . . . Parts Fried 2 | . . . 2 Impact Corruptions . | . . . . Robots Melted 1 | . . 1 . Combat Hostiles 1 | . . 1 . Parts Melted 6 | . . 4 2 Heat Transferred 1466 | . 74 481 911 Parts Sabotaged . | . . . . Parts Stolen . | . . . . Parts Stripped . | . . . . Power Chain Reactions . | . . . . Alert | -11 -10 -9 -8 ------- Run | Yrd Mat Mat Mat Maximum Alert Level 2 | . . . 2 Low Security (%) 88 | 100 100 100 53 Level 1 10 | . . . 44 Level 2 . | . . . 2 Level 3 . | . . . . Level 4 . | . . . . Level 5 . | . . . . High Security . | . . . . Max Security . | . . . . Peak Influence 418 | . 30 138 418 Initial 45 | . . . 45 Average 62 | . 2 53 201 Influence Increases 769 | . 40 176 553 Destroy 0b10 Robot/C 260 | . 40 120 100 Destroy 0b10 Robot/NC 25 | . . . 25 Destroy Leader 60 | . . 30 30 Successful Hack 8 | . . 8 . Disable Machine 90 | . . . 90 Anti-Garrison Action 150 | . . . 150 Destroy Structure 116 | . . 18 98 Lose Combat Pursuer 60 | . . . 60 Influence Decreases 371 | . 40 68 263 Entered New Map 63 | . . . 63 Time Decay 228 | . 40 68 120 Lost Part 80 | . . . 80 Squads Dispatched 4 | . . . 4 Investigation 1 | . . . 1 Extermination . | . . . . Reinforcement . | . . . . Assault 2 | . . . 2 Garrison 1 | . . . 1 Intercept . | . . . . Searches Triggered . | . . . . Construction Impeded . | . . . . Haulers Reinforced . | . . . . Active Scanning Responses . | . . . . Cargo Convoy Interrupts . | . . . . Stealth | -11 -10 -9 -8 --------- Run | Yrd Mat Mat Mat Distress Signals 1 | . 1 . . Communications Jammed . | . . . . Distress Signals . | . . . . Times Spotted 38 | . 4 6 28 Peak Tracking Total 12 | . 3 4 12 Tactical Retreats 1 | . . . 1 Traps | -11 -10 -9 -8 ------- Run | Yrd Mat Mat Mat Traps Triggered 2 | . 1 . 1 Indirectly . | . . . . Trap Hack Attempts . | . . . . Triggered . | . . . . Disarmed . | . . . . Reprogrammed . | . . . . Reused . | . . . . Traps Extracted . | . . . . Installed . | . . . . Triggered . | . . . . Machines | -11 -10 -9 -8 ---------- Run | Yrd Mat Mat Mat Machines Disabled 7 | . . . 7 Max in Single Turn 3 | . . . 3 Garrison Access 1 | . . . 1 Machines Repaired . | . . . . Machines Dismantled . | . . . . Machines Sabotaged . | . . . . Overloaded Fab Kills . | . . . . Hacking | -11 -10 -9 -8 --------- Run | Yrd Mat Mat Mat Machines Accessed 2 | . . 2 . Terminals 1 | . . 1 . Fabricators . | . . . . Repair Stations . | . . . . Recycling Units 1 | . . 1 . Scanalyzers . | . . . . Garrison Access . | . . . . Total Hacks 3 | . . 3 . Successful 3 | . . 3 . Failed . | . . . . Catastrophic . | . . . . Database Lockouts . | . . . . Manual 1 | . . 1 . Terminals 2 | . . 2 . Fabricators . | . . . . Repair Stations . | . . . . Recycling Units 1 | . . 1 . Scanalyzers . | . . . . Garrison Access . | . . . . Terminal Hacks 2 | . . 2 . Record 2 | . . 2 . Fabricator Hacks . | . . . . Repair Station Hacks . | . . . . Recycling Unit Hacks 1 | . . 1 . Retrieve Matter 1 | . . 1 . Scanalyzer . | . . . . Garrison Access Hacks . | . . . . Unauthorized Hacks . | . . . . Terminals . | . . . . Fabricators . | . . . . Repair Stations . | . . . . Recycling Units . | . . . . Scanalyzers . | . . . . Garrison Access . | . . . . Data Cores Recovered . | . . . . Used . | . . . . Hacking Detections . | . . . . Full Trace Events . | . . . . Feedback Events . | . . . . Feedback Blocked . | . . . . Robot Schematics Acquired . | . . . . Robots Built . | . . . . Authchips . | . . . . Time . | . . . . Total Robot Build Rating . | . . . . Part Schematics Acquired . | . . . . Parts Built . | . . . . Authchips . | . . . . Time . | . . . . Total Part Build Rating . | . . . . Part Studies Acquired . | . . . . Parts Repaired . | . . . . Time . | . . . . Parts Recycled . | . . . . Recycled Matter . | . . . . Retrieved Matter . | . . . . Retrieved Components . | . . . . Parts Scanalyzed . | . . . . Part Schematics Acquired . | . . . . Parts Damaged . | . . . . Bothacking | -11 -10 -9 -8 ------------ Run | Yrd Mat Mat Mat Used RIF Installer . | . . . . Robots Hacked . | . . . . Non-combat . | . . . . Combat . | . . . . Robot Hacks Applied . | . . . . Relay Couplers Released 1 | . . . 1 Machine Destruction 1 | . . . 1 Fabnet Peak Effective % . | . . . . Robots Rewired . | . . . . Allies Hacked . | . . . . Hacks Repelled . | . . . . Allies | -11 -10 -9 -8 -------- Run | Yrd Mat Mat Mat Total Allies . | . . . . Largest Group . | . . . . Highest-Rated Group . | . . . . Highest-Rated Ally . | . . . . Total Orders . | . . . . Ally Attacks . | . . . . Total Damage . | . . . . Kills . | . . . . Allies Corrupted . | . . . . Allies Melted . | . . . . Intel | -11 -10 -9 -8 ------- Run | Yrd Mat Mat Mat Active Infowar (turns) 389 | . 307 . 82 Sensors 389 | . 307 . 82 Robot Analysis Total . | . . . . Derelict Logs Recovered . | . . . . Drone Launches . | . . . . Drone Recoveries . | . . . . Exploration | -11 -10 -9 -8 ------------- Run | Yrd Mat Mat Mat Turns Passed 1036 | 114 417 258 247 Spaces Moved 617 | 32 296 177 112 Core 13 | 12 . . 1 Treads . | . . . . Legs 604 | 20 296 177 111 Wheels . | . . . . Hover . | . . . . Flight . | . . . . Fastest Speed 50 | 50 120 120 120 Average Speed 119 | 109 120 120 120 Slowest Speed 190 | 150 120 120 190 Overloaded Moves . | . . . . Propulsion Burnouts . | . . . . Robots Hopped . | . . . . Potential Cave-ins . | . . . . Cave-ins Triggered . | . . . . Exploration Rate (%) 20 | 5 42 20 14 Regions Visited 3 Branch Regions . Pre-discovered Areas . | . . . . Known Exits Taken . | . . . . Unknown Exits Taken 3 | 1 1 1 . Scrap Searched . | . . . . Spaces Dug . | . . . . Terrain Destroyed 122 | . . 19 103 Melee . | . . . . Projectile . | . . . . AOE 122 | . . 19 103 Terrain Rammed . | . . . . Walls Destroyed . | . . . . Machines Disabled . | . . . . Actions | -11 -10 -9 -8 --------- Run | Yrd Mat Mat Mat Total 833 | 111 346 200 176 Wait 132 | 70 39 . 23 Move 614 | 31 295 176 112 Hop . | . . . . Pick Up 16 | 5 4 4 3 Fast Attach . | . . . . Attach 13 | 5 2 3 3 Detach . | . . . . Swap 3 | . . 3 . Drop 3 | . . 3 . Fire 52 | . 6 11 35 Melee . | . . . . Ram . | . . . . Kick . | . . . . Crush . | . . . . Escape Stasis . | . . . . Rewire . | . . . . Trap . | . . . . Miscellaneous . | . . . . Route ------- -11/Scrapyard -10/Materials (discovered 2 exits: *Mat / [*Sub]) -9/Materials -8/Materials History --------- Turn | Location | Event 12 | -11/Scrapyard | Discovered new exit (range 14) 115 | -11/Scrapyard | Entered Materials 318 | -10/Materials | Build established: Mutant 392 | -10/Materials | Discovered new exit (range 15) 486 | -10/Materials | Discovered new exit (range 6) 532 | -10/Materials | Entered another Materials area 532 | -9/Materials | Evolved 2 slots: Utility x1, Weapon x1 781 | -9/Materials | Discovered new exit (range 5) 790 | -9/Materials | Entered another Materials area 790 | -8/Materials | Evolved 2 slots: Power x2 838 | -8/Materials | Build established: Tank 912 | -8/Materials | Garrison activated, responded to threat 1026 | -8/Materials | Core integrity fell below 50% 1034 | -8/Materials | Core integrity fell below 20% 1037 | -8/Materials | Destroyed by G-47 Trooper with Particle Gun Last Messages --------------- L-31 Rogue knocked back. Melee Analysis Suite fried. L-31 Rogue destroyed. G-50 Soldier knocked back. [Achievement: Bumper Bots] G-50 Soldier knocked back. Imp. Aluminum Leg destroyed. Fusion Modulator explodes. Destroyed Lgt. Nuclear Core. Recycling Unit disabled. Beam Rifle destroyed. Penetrated by Slug. Sensor Array destroyed. G-47 Trooper knocked back. K-01 Serf collects debris. G-50 Soldier knocked back. Flak Cannon destroyed. K-01 Serf collects debris. Critical hit (Burn: +37). K-01 Serf collects debris. Map ----- +----------------------------------------------------+ | ?????????????????????????????????????????????????? | | ?????????????????????????????????????????????????? | | ?????????????????????????????????????????????????? | | ?????????????????????????????????????????????????? | | ?????????????????????????????????????????????????? | | ?????????????????????????????????????????????????? | | ?????????????????????????????????????????????????? | | ?????? ????????????????????????????????????????? | | ?????? ????????????????????????????????????????? | | ?????? #???????????????????????????????????????? | | ?????# #???????????????????????????????????????? | | ?????# #???????????????????????????????????????? | | ?????# "%#???????????????????????????????????????? | | ?????# "%#???????????????????????????????????????? | | ?????# "#???????????????????????????????????????? | | ?????+ +???????????????????????????????????????? | | ?????# #???????????????????????????????????????? | | ?????# #???????????????????????????????????????? | | ?????# #???????????????????????????????????????? | | ?????# ##############??????????????????????????? | | ?????# # #??????????????????????????? | | ?????# # #######????????????????????? | | ????## # ###??????????????????? | | ????# #;;;;;;;####???????????????? | | ????## ;;g #???????????????? | | ##### #+#######;gmbg@ " #???????????????? | | g;g " #???????????????? | | == g "" #???????????????? | | ! * """ ;ghi #???????????????? | | #""##/####### """ ; #???????????????? | | " = [ ### """ ; ! #???????????????? | | "## ; k #???????????????? | | "##? #;;;;######???????????????? | | "#? r ????????????????????? | | "#? t ######????????????????????? | | "## #?????????????????????????? | | " = ###########+##?????????????????????????? | | #??????????????????????????????????????? | | " *= #??????????????????????????????????????? | | """"""""##??????????????????????????????????????? | | ### #" ###???????????????????????????????????????? | | ??#### #?????????????????????????????????????????? | | ?????# #?????????????????????????????????????????? | | ????## ####??????????????????????????????????????? | | ??###" """###????????????????????????????????????? | | ??# " #????????????????????????????????????? | | ??# "% #????????????????????????????????????? | | ??#""!! " ?????????????????????????????????? | | ? "= " ] ??????????????????????????????? | | ! " ] ???????????????????????????? | +----------------------------------------------------+ Best States ------------- Heat Dissipation 31 Energy Generation 10 Energy Capacity 125 Matter Stores 436 Matter Capacity 500 Sight Range 16 Robot Scan Range 14 Terrain Scan Density 10 Armor Coverage 150 Evasion (%) 55 Item Schematics ----------------- None Robot Schematics ------------------ None Fabricated ------------ Nothing Repaired ---------- Nothing Studied --------- None Alien Tech Used ----------------- None Achievements -------------- Bumper Bots It's Just You Loot Pinata Power Corrupts Risk Taker Challenges ------------ None Game ------ Seed CannonTiamatReactor Manual? 0 Play Time 00:23:15 Cumulative 1.7 hours Start 2025.12.26 @ 17:05:48 End 2025.12.26 @ 17:34:32 Sessions 1 Manual Loads 0 Difficulty Rogue Special Mode None Game No. 3 Rogue 3 Adventurer 0 Explorer 0 Win Type - Total 0 Types 0/0/0/0/0/0/0/0/0/0 Lore% 0 Gallery% 2 Achievement% 3 Wizard Run 0 Options --------- Layout 1 ASCII 0 Keyboard 0 Movement Mouse Keybinds 0 Fullscreen 1 Font 24/Smallcaps Map View 50x35 Zoom Use 25% Tactical HUD 0 Map Filters NONE Filters NONE Steam 1 RUN: cd1bfbd4-4d2e-4479-973a-16e573abfaa7